bitfinex/quotes_SOLUSD_20250724
["timestamp","ask_amount","ask_price","bid_price","bid_amount"]
[1753331424935,0.006,188.64,188.63,5.94849276]
[1753331425113,0.006,188.64,188.62,5.94849276]
[1753331425718,0.006,188.64,188.63,5.94849276]
[1753331426359,0.006,188.64,188.63,6.54849276]
[1753331426645,0.006,188.64,188.63,5.94849276]
[1753331428729,0.006,188.64,188.63,11.24987642]
[1753331429040,0.006,188.64,188.63,11.84987642]
[1753331429615,0.006,188.64,188.61,6.3056]
[1753331429923,0.006,188.64,188.6,1.6261]
[1753331429924,0.006,188.64,188.63,5.94849276]
[1753331431238,0.006,188.64,188.63,6.54849276]
[1753331431423,0.006,188.64,188.63,11.84987642]
[1753331431942,0.006,188.64,188.63,100.04987642]
[1753331432661,0.006,188.64,188.63,94.14849276]
[1753331435255,0.006,188.64,188.63,5.94849276]
[1753331435947,0.006,188.64,188.63,6.54849276]
[1753331436152,0.006,188.64,188.63,5.94849276]
[1753331436744,0.006,188.64,188.63,6.54849276]
[1753331436947,0.006,188.64,188.63,100.69698552]
[1753331437267,0.006,188.64,188.63,105.99836918]
[1753331437454,0.006,188.64,188.63,88.8]
[1753331437694,0.006,188.64,188.63,94.74849276]
[1753331438159,0.006,188.64,188.63,88.8]
[1753331438381,0.006,188.64,188.63,94.74849276]
[1753331439065,0.006,188.64,188.63,100.04987642]
[1753331444371,0.006,188.64,188.63,94.10138366]
[1753331444579,0.006,188.64,188.63,100.04987642]
[1753331444768,0.006,188.64,188.63,99.44987642]
[1753331445660,0.006,188.64,188.63,94.14849276]
[1753331446770,0.006,188.64,188.63,99.44987642]
[1753331447871,0.006,188.64,188.63,100.04987642]
[1753331448573,0.006,188.64,188.63,105.99836918]
[1753331449380,0.03,188.68,188.63,122.78305315]
[1753331449573,0.03,188.68,188.67,5.94849276]
[1753331449783,0.03,188.7,188.68,5.2999788]
[1753331450084,0.03,188.7,188.69,44.45846255]
[1753331450276,0.03,188.7,188.69,45.05846255]
[1753331452159,0.03,188.7,188.69,50.35816046]
[1753331452970,0.03,188.7,188.69,138.55816046]
[1753331453152,0.03,188.7,188.69,138.02819067]
[1753331453477,0.03,188.72,188.69,88.8]
[1753331453780,0.69,188.72,188.7,37.96]
[1753331453981,0.03,188.72,188.71,5.94849276]
[1753331458786,0.03,188.72,188.71,11.247629]
[1753331458988,0.03,188.72,188.71,88.2]
[1753331459169,0.03,188.72,188.71,94.14849276]
[1753331459482,0.03,188.72,188.71,99.447629]
[1753331461194,0.03,188.72,188.71,94.14849276]
[1753331461378,0.69,188.72,188.71,88.2]
[1753331461687,0.69,188.72,188.71,94.14849276]
[1753331462067,0.03,188.72,188.71,94.14849276]
[1753331462268,0.03,188.72,188.71,99.447629]
[1753331463207,0.03,188.72,188.71,97.14017909]
[1753331464689,0.03,188.72,188.71,91.84104285]
[1753331465198,0.03,188.72,188.71,97.14017909]
[1753331467484,0.03,188.72,188.71,88.2]
[1753331467485,0.69,188.72,188.71,88.2]
[1753331467809,0.69,188.72,188.65,88.2]
[1753331468096,3.64104285,188.7,188.64,3.64104285]
[1753331468284,3.64104285,188.69,188.65,37.88]
[1753331468594,0.66,188.68,188.65,37.88]
[1753331468910,0.66,188.68,188.66,3.64104285]
[1753331469070,0.66,188.67,188.66,3.64104285]
[1753331469271,0.66,188.67,188.66,41.50104285]
[1753331470695,9.60133103,188.67,188.63,88.26]
[1753331470885,4.30104285,188.66,188.63,0.06]
[1753331471396,0.66,188.65,188.63,0.06]
[1753331472377,0.66,188.64,188.63,0.06]
[1753331472987,5.30032184,188.67,188.63,0.06]
[1753331473179,0.66,188.66,188.63,6.00081505]
[1753331473378,0.66,188.65,188.63,6.00081505]
[1753331473600,0.66,188.64,188.63,6.00081505]
[1753331474174,0.66,188.64,188.63,0.06]
[1753331477488,1.5162,188.65,188.63,0.06]
[1753331477686,0.66,188.66,188.63,0.06]
[1753331477883,5.94081505,188.67,188.63,0.06]
[1753331478080,0.66,188.64,188.63,0.06]
[1753331479305,5.94081505,188.67,188.63,0.06]
[1753331479491,0.66,188.66,188.63,0.06]
[1753331479691,0.66,188.65,188.63,0.06]
[1753331480230,0.66,188.64,188.63,0.06]
[1753331484712,0.66,188.66,188.63,0.06]
[1753331484913,0.66,188.65,188.63,0.06]
[1753331486500,37.90085916,188.68,188.63,6.00081505]
[1753331486704,0.66,188.67,188.63,6.00081505]
[1753331486905,0.66,188.66,188.63,6.00081505]
[1753331487105,37.24085916,188.68,188.63,6.00081505]
[1753331487106,0.66,188.65,188.63,6.00081505]
[1753331488109,11.24114429,188.67,188.63,0.06]
[1753331488316,0.66,188.64,188.63,0.06]
[1753331488529,6.60081505,188.64,188.59,0.06]
[1753331488701,5.94081505,188.6,188.59,0.06]
[1753331489099,11.90304198,188.6,188.59,0.06]
[1753331489494,11.90304198,188.6,188.58,0.06]
[1753331489690,6.60081505,188.59,188.58,0.06]
[1753331490995,5.96250808,188.59,188.58,0.06]
[1753331491317,11.90332313,188.59,188.58,0.06]
[1753331493218,9.61247774,188.59,188.58,0.06]
[1753331499223,26.0,188.55,188.51,0.1]
[1753331499520,29.64996966,188.52,188.51,0.1]
[1753331499918,30.30996966,188.52,188.51,0.1]
[1753331500324,2.2884,188.54,188.51,0.1]
[1753331500510,4.30996966,188.54,188.51,0.1]
[1753331500703,0.66,188.53,188.51,0.1]
[1753331500904,34.95369213,188.55,188.51,0.1]
[1753331501113,0.66,188.54,188.51,0.1]
[1753331502110,0.66,188.53,188.51,0.1]
[1753331502504,0.66,188.52,188.51,0.1]
[1753331503228,4.30996966,188.54,188.51,0.1]
[1753331503428,3.64996966,188.54,188.51,0.1]
[1753331503632,4.30996966,188.54,188.51,0.1]
[1753331504524,0.66,188.53,188.51,0.1]
[1753331504727,0.66,188.52,188.51,0.1]
[1753331506016,8.95403664,188.54,188.51,0.1]
[1753331506514,0.66,188.53,188.51,0.1]
[1753331506827,0.66,188.52,188.51,0.1]
[1753331507239,9.61403664,188.54,188.51,0.1]
[1753331507408,8.95403664,188.54,188.51,0.1]
[1753331507609,4.30996966,188.53,188.51,0.1]
[1753331507808,0.66,188.53,188.51,0.1]
[1753331508033,67.42996966,188.52,188.51,0.1]
[1753331508237,68.08996966,188.52,188.51,0.1]
[1753331509145,73.39444663,188.52,188.51,0.1]
[1753331509540,75.04814663,188.52,188.51,0.1]
[1753331509765,75.04814663,188.52,188.51,1e-08]
[1753331509924,95.17776567,188.52,188.39,46.8180022]
[1753331510123,3.64996966,188.44,188.39,46.8180022]
[1753331510319,0.66,188.43,188.39,0.1]
[1753331510547,0.66,188.43,188.39,9.05805253]
[1753331511127,3.64996966,188.47,188.4,5.96773269]
[1753331511327,37.8,188.46,188.42,3.64996966]
[1753331511547,26.0,188.43,188.39,0.1]
[1753331511847,3.64996966,188.4,188.39,0.1]
[1753331512220,4.36996966,188.4,188.39,0.1]
[1753331512627,68.24996966,188.4,188.39,0.1]
[1753331512842,4.36996966,188.4,188.39,0.1]
[1753331513625,6.02785562,188.4,188.39,0.1]
[1753331513820,9.67782528,188.4,188.39,0.1]
[1753331514528,6.02785562,188.4,188.39,0.1]
[1753331514853,42.32996966,188.4,188.39,0.1]
[1753331515062,73.63782528,188.4,188.39,0.1]
[1753331515227,75.94717824,188.4,188.39,0.1]
[1753331515762,49.94717824,188.4,188.39,0.1]
[1753331516847,43.98785562,188.4,188.39,0.1]
[1753331517023,49.94717824,188.4,188.39,0.1]
[1753331517224,26.0,188.37,188.25,8.7007]
[1753331517455,5.95932262,188.34,188.25,8.7007]
[1753331517660,38.64,188.33,188.23,0.66]
[1753331517951,31.95932262,188.3,188.23,0.66]
[1753331518161,37.92,188.29,188.24,5.95932262]
[1753331518325,0.72,188.32,188.25,0.66]
[1753331518521,0.72,188.31,188.24,5.95932262]
[1753331518726,0.72,188.31,188.2,5.41333036]
[1753331518727,37.92,188.3,188.23,0.66]
[1753331519030,37.9,188.3,188.25,11.2713722]
[1753331519226,26.0,188.26,188.2,0.1]
[1753331519557,37.9,188.25,188.2,11.37273547]
[1753331519761,38.62,188.25,188.2,6.05932262]
[1753331520051,44.57932262,188.25,188.2,11.37271735]
[1753331520294,25.91,188.37,188.2,11.37271735]
[1753331520295,6.5832,188.36,188.22,1.6444]
[1753331520433,5.95932262,188.31,188.25,5.95932262]
[1753331520750,6.67932262,188.3,188.25,5.95932262]
[1753331520932,0.72,188.29,188.25,5.95932262]
[1753331521464,5.95932262,188.26,188.2,0.1]
[1753331521630,5.95932262,188.25,188.2,6.05932262]
[1753331521830,6.67932262,188.25,188.2,6.05932262]
[1753331522042,0.72,188.24,188.2,0.1]
[1753331522328,26.0,188.26,188.2,11.37278526]
[1753331522528,37.94,188.27,188.21,0.66]
[1753331522831,1.6289,188.33,188.21,0.66]
[1753331522832,5.95932262,188.32,188.26,5.95932262]
[1753331523036,5.95932262,188.29,188.23,6.61932262]
[1753331523226,11.99077544,188.28,188.22,6.01932262]
[1753331523433,6.67932262,188.28,188.22,6.01932262]
[1753331523652,6.67932262,188.28,188.24,5.95932262]
[1753331523653,0.72,188.28,188.24,5.95932262]
[1753331523860,63.94,188.3,188.26,5.95932262]
[1753331524101,26.0,188.3,188.25,5.95932262]
[1753331524382,37.94,188.31,188.27,5.95932262]
[1753331524593,0.72,188.34,188.27,0.66]
[1753331524757,0.72,188.34,188.3,5.95932262]
[1753331525382,0.72,188.33,188.25,0.66]
[1753331525563,6.67932262,188.33,188.27,5.95932262]
[1753331525762,0.72,188.35,188.3,5.95932262]
[1753331525965,38.66,188.35,188.28,0.66]
[1753331526276,38.66,188.35,188.3,5.95932262]
[1753331526481,26.0,188.34,188.28,0.66]
[1753331526664,26.0,188.34,188.31,5.95932262]
[1753331526866,43.89932262,188.36,188.31,5.95932262]
[1753331527067,0.72,188.35,188.31,5.95932262]
[1753331527386,5.95932262,188.32,188.27,5.95932262]
[1753331527559,0.72,188.31,188.28,5.95932262]
[1753331527959,0.72,188.31,188.29,5.95932262]
[1753331528158,37.94,188.32,188.25,0.66]
[1753331528475,38.66,188.32,188.28,5.95932262]
[1753331528669,0.72,188.31,188.28,5.95932262]
[1753331529086,0.72,188.3,188.24,5.31236719]
[1753331529291,5.95932262,188.29,188.22,5.37289639]
[1753331529497,5.95932262,188.27,188.22,0.06]
[1753331529794,38.72,188.28,188.22,0.06]
[1753331529795,26.0,188.25,188.22,0.06]
[1753331530325,0.72,188.27,188.23,5.95932262]
[1753331530463,38.86,188.27,188.23,5.95932262]
[1753331530662,0.72,188.27,188.23,5.95932262]
[1753331530864,64.14,188.28,188.24,5.95932262]
[1753331531060,26.0,188.28,188.22,6.03291529]
[1753331531366,0.72,188.27,188.22,0.06]
[1753331531580,38.88,188.26,188.22,6.01932262]
[1753331531782,0.72,188.25,188.22,6.01932262]
[1753331532177,0.72,188.24,188.22,0.06]
[1753331532582,0.72,188.23,188.22,0.06]
[1753331533089,5.95932262,188.25,188.22,0.06]
[1753331533090,0.72,188.25,188.22,0.06]
[1753331533284,0.72,188.25,188.22,6.01932262]
[1753331533883,0.72,188.29,188.24,5.95932262]
[1753331534084,38.14,188.29,188.27,5.95932262]
[1753331534287,0.72,188.32,188.28,5.95932262]
[1753331534500,38.9,188.32,188.29,5.95932262]
[1753331535708,0.72,188.31,188.28,5.95932262]
[1753331536782,49.4495625,188.32,188.27,5.95932262]
[1753331536988,0.72,188.3,188.27,5.95932262]
[1753331537188,49.4495625,188.32,188.28,5.95932262]
[1753331537189,38.18,188.32,188.28,5.95932262]
[1753331537716,0.72,188.31,188.26,5.31166976]
[1753331537903,0.72,188.31,188.28,5.95932262]
[1753331538210,26.0,188.29,188.22,5.37288167]
[1753331538407,26.0,188.29,188.25,5.95932262]
[1753331538598,0.72,188.28,188.25,5.95932262]
[1753331538909,0.72,188.27,188.25,5.95932262]
[1753331539081,0.72,188.27,188.22,0.06]
[1753331539082,26.0,188.29,188.22,0.06]
[1753331539289,0.72,188.28,188.25,5.95932262]
[1753331539494,0.72,188.27,188.24,5.95932262]
[1753331539714,0.72,188.26,188.24,5.95932262]
[1753331539912,0.72,188.28,188.24,5.95932262]
[1753331540100,38.92,188.28,188.24,5.95932262]
[1753331540508,64.2,188.29,188.26,5.95932262]
[1753331540906,0.72,188.28,188.22,5.37285805]
[1753331541109,0.72,188.28,188.22,6.01932262]
[1753331541418,5.95932262,188.27,188.22,0.06]
[1753331541615,5.98180282,188.26,188.22,0.06]
[1753331541793,11.94112544,188.26,188.22,0.06]
[1753331542102,0.67,188.25,188.22,0.06]
[1753331542303,5.31180282,188.26,188.22,0.06]
[1753331542508,0.67,188.24,188.22,0.06]
[1753331543312,0.67,188.23,188.22,0.06]
[1753331543499,43.63212338,188.25,188.22,0.06]
[1753331543713,44.30212338,188.25,188.22,0.06]
[1753331543900,0.67,188.24,188.22,0.06]
[1753331544219,38.99,188.25,188.22,0.06]
[1753331544920,0.67,188.24,188.22,0.06]
[1753331545604,0.67,188.23,188.22,0.06]
[1753331546805,29.66153141,188.22,188.13,0.72]
[1753331547004,38.95,188.21,188.16,3.66153141]
[1753331547207,38.95,188.21,188.13,0.72]
[1753331547208,0.67,188.2,188.13,0.72]
[1753331547419,0.67,188.2,188.17,3.66153141]
[1753331547721,26.0,188.18,188.1,0.72]
[1753331548105,26.0,188.18,188.15,3.66153141]
[1753331548420,26.67,188.18,188.11,0.72]
[1753331548615,26.67,188.18,188.14,3.66153141]
[1753331548817,0.67,188.17,188.13,5.31530486]
[1753331549304,0.67,188.17,188.15,5.97099156]
[1753331549616,26.67,188.16,188.09,8.96835216]
[1753331549817,0.67,188.15,188.09,8.96835216]
[1753331550023,0.67,188.15,188.11,5.97099156]
[1753331550228,0.67,188.15,188.09,8.96835216]
[1753331550406,0.67,188.15,188.11,5.97099156]
[1753331550721,50.19610019,188.15,188.1,5.97099156]
[1753331550908,0.67,188.14,188.09,14.93934372]
[1753331551103,0.67,188.13,188.09,14.93934372]
[1753331551299,43.55510863,188.15,188.09,8.96835216]
[1753331551300,44.21099156,188.15,188.09,8.96835216]
[1753331551518,44.21099156,188.15,188.09,14.93934372]
[1753331551519,6.64099156,188.14,188.09,14.93934372]
[1753331551710,0.67,188.13,188.09,8.96835216]
[1753331552018,5.97099156,188.1,188.09,8.96835216]
[1753331552812,58.02921266,188.1,188.09,7.42835216]
[1753331553204,26.0,188.12,188.09,7.42835216]
[1753331553410,26.0,188.1,188.09,7.42835216]
[1753331553807,1.6203,188.15,188.09,14.11934372]
[1753331554104,5.97099156,188.16,188.11,5.97099156]
[1753331554319,31.97099156,188.16,188.1,0.72]
[1753331554519,31.97099156,188.16,188.09,12.7449151]
[1753331554723,26.0,188.16,188.11,5.97099156]
[1753331555024,26.0,188.16,188.12,0.72]
[1753331555624,38.28,188.18,188.14,5.97099156]
[1753331555814,38.28,188.18,188.15,6.69099156]
[1753331556017,38.28,188.18,188.15,0.72]
[1753331556621,38.28,188.18,188.11,0.72]
[1753331556812,50.14516285,188.18,188.13,5.97099156]
[1753331557008,50.14516285,188.18,188.11,0.72]
[1753331557224,5.97099156,188.17,188.12,5.97099156]
[1753331557528,0.58,188.17,188.12,5.97099156]
[1753331557712,43.59417129,188.18,188.13,5.97099156]
[1753331557904,38.28,188.18,188.14,5.97099156]
[1753331558098,43.59416024,188.18,188.13,6.69099156]
[1753331558308,44.17416024,188.18,188.13,5.97099156]
[1753331558509,0.58,188.17,188.13,5.97099156]
[1753331558718,49.5651518,188.18,188.11,6.03598081]
[1753331559018,49.5651518,188.18,188.11,0.72]
[1753331559208,43.59416024,188.18,188.13,5.97099156]
[1753331559416,70.37099156,188.2,188.15,5.97099156]
[1753331559625,70.37099156,188.2,188.15,6.69099156]
[1753331559927,70.95099156,188.2,188.14,5.97099156]
[1753331560110,5.97099156,188.19,188.12,0.72]
[1753331560309,5.97099156,188.19,188.14,5.97099156]
[1753331560514,5.97099156,188.19,188.14,6.69099156]
[1753331560906,64.4,188.2,188.15,6.69099156]
[1753331561227,69.71357277,188.2,188.15,6.69099156]
[1753331561411,69.71357277,188.2,188.11,5.31603848]
[1753331561412,69.69354543,188.2,188.16,0.72]
[1753331561624,70.27354543,188.2,188.15,5.97099156]
[1753331562044,69.69354543,188.2,188.15,6.69099156]
[1753331562343,75.66453699,188.2,188.15,0.72]
[1753331562644,64.38,188.2,188.15,6.69099156]
[1753331563140,64.38,188.2,188.16,0.72]
[1753331563141,31.97099156,188.2,188.16,0.72]
[1753331563539,38.38,188.21,188.17,0.72]
[1753331564217,38.38,188.21,188.15,5.31490812]
[1753331564218,49.66421681,188.21,188.15,5.31490812]
[1753331564422,49.66421681,188.21,188.15,0.72]
[1753331564830,16.78468397,188.21,188.15,6.0346511]
[1753331565026,61.09567553,188.21,188.15,0.72]
[1753331565228,5.97099156,188.2,188.15,6.69099156]
[1753331565431,6.55099156,188.2,188.15,5.97099156]
[1753331565824,55.12468397,188.21,188.15,0.72]
[1753331566145,5.97099156,188.2,188.15,0.72]
[1753331566355,44.31099156,188.21,188.16,0.72]
[1753331566541,38.34,188.21,188.13,5.31544315]
[1753331566746,11.89427686,188.29,188.19,5.97099156]
[1753331566921,11.28334931,188.25,188.2,5.97099156]
[1753331567127,44.27099156,188.24,188.19,6.69099156]
[1753331567328,5.97099156,188.23,188.17,0.72]
[1753331567523,44.27099156,188.24,188.18,5.97099156]
[1753331567824,44.27099156,188.24,188.18,6.69099156]
[1753331568236,38.3,188.24,188.18,6.69099156]
[1753331568433,44.27099156,188.24,188.19,5.97099156]
[1753331568652,49.58343361,188.24,188.19,6.69099156]
[1753331569038,49.58343361,188.24,188.19,0.72]
[1753331569234,5.97099156,188.23,188.17,6.69099156]
[1753331569538,44.19244205,188.24,188.17,6.69099156]
[1753331569741,5.97099156,188.23,188.17,6.69099156]
[1753331569946,31.97099156,188.21,188.15,6.69099156]
[1753331570652,26.0,188.21,188.16,12.00561741]
[1753331570827,26.0,188.21,188.17,0.72]
[1753331571025,31.97099156,188.25,188.19,5.97099156]
[1753331571238,44.25099156,188.25,188.2,0.69]
[1753331571560,44.25099156,188.25,188.18,5.97099156]
[1753331571561,5.97099156,188.24,188.18,5.97099156]
[1753331572055,5.97099156,188.24,188.19,5.97099156]
[1753331572242,5.97099156,188.24,188.2,0.69]
[1753331572742,26.58,188.26,188.2,0.69]
[1753331572743,16.81468397,188.28,188.23,5.97099156]
[1753331573059,0.03,188.28,188.24,6.66099156]
[1753331573237,0.03,188.28,188.25,0.69]
[1753331573638,0.03,188.28,188.24,5.97099156]
[1753331573946,0.03,188.28,188.24,6.66099156]
[1753331574147,0.03,188.28,188.24,0.69]
[1753331574350,0.61,188.28,188.23,5.97099156]
[1753331574654,11.8922966,188.28,188.23,5.97099156]
[1753331574856,11.8922966,188.28,188.23,6.66099156]
[1753331575043,11.8922966,188.28,188.23,0.69]
[1753331575227,23.33567553,188.27,188.21,0.69]
[1753331575427,5.97099156,188.26,188.2,5.97099156]
[1753331576044,49.33567553,188.27,188.21,5.97099156]
[1753331576358,5.31180282,188.26,188.21,5.97099156]
[1753331576545,43.51180282,188.26,188.21,6.66099156]
[1753331577230,43.51180282,188.26,188.19,5.31369088]
[1753331577231,43.51180282,188.26,188.22,5.97099156]
[1753331577560,38.2,188.26,188.23,6.66099156]
[1753331578039,38.2,188.26,188.23,5.97099156]
[1753331578246,38.2,188.26,188.25,5.97099156]
[1753331578442,26.0,188.27,188.25,6.66099156]
[1753331578642,0.03,188.28,188.26,6.66099156]
[1753331578847,0.03,188.28,188.27,5.97099156]
[1753331579155,0.03,188.28,188.27,0.69]
[1753331579740,0.03,188.28,188.25,0.69]
[1753331579945,0.03,188.28,188.27,5.97099156]
[1753331580537,0.03,188.28,188.26,6.66099156]
[1753331580742,0.03,188.28,188.26,5.97099156]
[1753331580964,0.03,188.28,188.27,5.97099156]
[1753331581177,0.03,188.28,188.22,0.69]
[1753331581461,6.55099156,188.27,188.22,5.97099156]
[1753331581835,0.58,188.27,188.22,5.97099156]
[1753331582043,44.16099156,188.28,188.22,6.66099156]
[1753331582554,0.03,188.28,188.26,5.97099156]
[1753331582761,0.03,188.28,188.27,0.69]
[1753331582938,0.03,188.28,188.27,6.66099156]
[1753331583439,0.03,188.28,188.26,5.97099156]
[1753331583867,0.03,188.28,188.27,6.66099156]
[1753331584758,0.03,188.28,188.27,11.97251224]
[1753331585559,0.03,188.32,188.27,25.25131396]
[1753331585767,0.03,188.32,188.28,2.3257]
[1753331585952,0.03,188.32,188.31,5.97099156]
[1753331586342,0.03,188.32,188.31,6.66099156]
[1753331586534,0.03,188.32,188.31,11.97138399]
[1753331587154,0.03,188.32,188.29,6.00071333]
[1753331587336,0.03,188.32,188.31,5.97099156]
[1753331588039,0.03,188.32,188.31,6.66099156]
[1753331588638,0.03,188.32,188.31,11.97138399]
[1753331591077,0.03,188.32,188.31,17.94237555]
[1753331591270,0.03,188.32,188.31,9.65584524]
[1753331591447,0.03,188.32,188.31,47.71584524]
[1753331591645,0.03,188.32,188.31,135.91584524]
[1753331591841,0.03,188.32,188.31,44.06039243]
[1753331592061,0.03,188.32,188.31,47.71584524]
[1753331592536,0.03,188.32,188.31,9.65584524]
[1753331594575,0.03,188.32,188.28,1.6357]
[1753331594778,0.03,188.32,188.27,0.69]
[1753331594950,0.64,188.32,188.28,3.65545281]
[1753331595265,5.95020015,188.32,188.28,3.65545281]
[1753331595446,0.03,188.32,188.29,3.65545281]
[1753331596556,0.03,188.32,188.29,4.34545281]
[1753331597781,0.03,188.32,188.27,5.3114549]
[1753331597782,0.03,188.32,188.31,3.65545281]
[1753331598146,0.03,188.32,188.31,4.34545281]
[1753331598561,0.03,188.32,188.31,0.69]
[1753331598752,0.03,188.32,188.31,3.65545281]
[1753331599175,0.03,188.32,188.31,4.34545281]
[1753331600885,0.03,188.32,188.31,97.85584524]
[1753331601055,0.03,188.32,188.31,9.65584524]
[1753331601381,0.03,188.32,188.31,97.85584524]
[1753331601949,0.03,188.32,188.31,9.65584524]
[1753331603772,0.03,188.32,188.31,4.34545281]
[1753331603948,0.03,188.32,188.31,3.65545281]
[1753331604570,0.03,188.32,188.31,4.35545281]
[1753331605554,0.03,188.32,188.31,9.66584524]
[1753331607762,0.03,188.32,188.31,3.65545281]
[1753331607972,0.03,188.32,188.29,37.98]
[1753331608174,0.03,188.32,188.31,3.65545281]
[1753331608680,0.03,188.32,188.29,3.65545281]
[1753331608876,0.03,188.32,188.31,3.65545281]
[1753331609565,0.03,188.32,188.3,3.65545281]
[1753331610274,0.03,188.32,188.29,3.65545281]
[1753331610466,0.64,188.32,188.29,3.65545281]
[1753331610873,0.03,188.32,188.29,3.65545281]
[1753331611079,0.03,188.32,188.31,3.65545281]
[1753331613172,0.03,188.32,188.31,4.35545281]
[1753331613378,0.03,188.32,188.31,3.65545281]
[1753331613985,0.03,188.32,188.3,3.65545281]
[1753331614358,0.03,188.32,188.28,0.06]
[1753331614562,0.61,188.31,188.28,0.06]
[1753331614868,3.65545281,188.31,188.28,0.06]
[1753331615087,0.61,188.3,188.28,0.06]
[1753331615588,29.65545281,188.31,188.28,0.06]
[1753331615879,26.0,188.31,188.28,0.06]
[1753331616384,31.31051921,188.31,188.28,0.06]
[1753331616586,31.92051921,188.31,188.28,0.06]
[1753331617281,0.61,188.3,188.28,0.06]
[1753331618273,5.92084552,188.3,188.28,0.06]
[1753331618986,5.31084552,188.3,188.28,0.06]
[1753331620178,9.57629833,188.3,188.28,0.06]
[1753331621182,3.68545281,188.32,188.28,0.06]
[1753331621384,0.03,188.32,188.28,4.41545281]
[1753331621601,0.03,188.32,188.3,3.65545281]
[1753331622190,0.03,188.32,188.31,4.35545281]
[1753331623073,0.03,188.32,188.31,92.55545281]
[1753331623673,0.03,188.32,188.31,97.86584524]
[1753331624281,0.03,188.32,188.31,135.74584524]
[1753331625972,0.03,188.36,188.32,6.3929]
[1753331626183,0.03,188.36,188.35,3.65545281]
[1753331626386,0.03,188.36,188.35,41.51545281]
[1753331626771,0.03,188.36,188.35,42.21545281]
[1753331627185,0.03,188.36,188.35,45.87090562]
[1753331627694,0.03,188.36,188.35,47.46000562]
[1753331627998,0.03,188.36,188.35,52.76927028]
[1753331628774,0.2,188.37,188.35,141.50019674]
[1753331629002,0.03,188.4,188.36,8.01090562]
[1753331629204,0.03,188.4,188.39,3.65545281]
[1753331629397,0.03,188.4,188.39,41.49545281]
[1753331629570,0.03,188.4,188.39,42.19545281]
[1753331629770,0.03,188.4,188.39,42.72626654]
[1753331629993,0.2,188.47,188.39,61.30474734]
[1753331630198,0.2,188.47,188.46,3.65545281]
[1753331630694,0.2,188.47,188.46,4.35545281]
[1753331631086,0.2,188.47,188.46,3.65545281]
[1753331631508,0.2,188.47,188.41,3.65545281]
[1753331631509,3.85545281,188.47,188.41,3.65545281]
[1753331631801,0.61,188.46,188.42,3.65545281]
[1753331633196,5.50599462,188.47,188.42,3.65545281]
[1753331633383,6.11599462,188.47,188.42,3.65545281]
[1753331633785,9.77144743,188.47,188.42,3.65545281]
[1753331634194,9.77144743,188.47,188.37,41.49545281]
[1753331634195,0.61,188.46,188.41,3.65545281]
[1753331634400,0.61,188.45,188.41,3.65545281]
[1753331635186,0.61,188.45,188.41,5.9540924]
[1753331635989,5.3063634,188.46,188.41,5.9540924]
[1753331636189,5.9163634,188.46,188.41,5.9540924]
[1753331636605,11.8704558,188.46,188.41,6.6740924]
[1753331636903,5.9163634,188.46,188.42,5.9540924]
[1753331637603,5.3063634,188.46,188.42,6.6740924]
[1753331637781,5.3063634,188.46,188.42,0.72]
[1753331638306,5.3063634,188.46,188.42,6.6740924]
[1753331640110,0.2,188.47,188.44,5.9540924]
[1753331640295,0.2,188.47,188.45,6.6740924]
[1753331640894,0.2,188.47,188.46,0.72]
[1753331641191,0.2,188.47,188.46,6.6740924]
[1753331641791,0.2,188.47,188.46,5.9540924]